fUST/lending_fUST_20250203
["ID","MTS","AMOUNT","RATE_DAILY","PERIOD"]
[351430281,1738571447677,-500.0,0.00016849,2]
[351430282,1738571447686,-2210.56,0.00016849,2]
[351430283,1738571447697,-1017.45,0.00016849,2]
[351430284,1738571447706,-500.0,0.00016849,2]
[351430285,1738571447716,-500.0,0.00016849,2]
[351430286,1738571447726,-500.0,0.00016849,2]
[351430287,1738571447736,-435.52282677,0.00016849,2]
[351430288,1738571447746,-500.0,0.00016849,2]
[351430289,1738571447756,-1056.1,0.00016849,2]
[351430290,1738571447766,-500.0,0.00016849,2]
[351430291,1738571447775,-15200.72,0.00016849,2]
[351430292,1738571447784,-573.68,0.00016849,2]
[351430293,1738571447793,-3438.92,0.00016849,2]
[351430294,1738571447802,-726.21,0.00016849,2]
[351430295,1738571447811,-500.0,0.00016849,2]
[351430296,1738571447821,-1153.61,0.00016849,2]
[351430297,1738571447830,-500.0,0.00016849,2]
[351430298,1738571447840,-179.04774178,0.00016886,2]
[351430299,1738571447851,-500.0,0.00016904,2]
[351430300,1738571447862,-500.0,0.00016986,2]
[351430301,1738571447871,-516.31,0.00016986,2]
[351430302,1738571447882,-500.0,0.00016986,2]
[351430303,1738571447891,-500.0,0.00016986,2]
[351430304,1738571447900,-581.58,0.00016986,2]
[351430305,1738571447910,-500.0,0.00016986,2]
[351430306,1738571447919,-933.89,0.00016986,2]
[351430307,1738571447933,-500.0,0.00016986,2]
[351430308,1738571447942,-500.0,0.00016986,2]
[351430309,1738571447951,-500.0,0.00016986,2]
[351430310,1738571447962,-1201.38,0.00016986,2]
[351430311,1738571447971,-3527.22,0.00016986,2]
[351430312,1738571447980,-500.0,0.00016986,2]
[351430313,1738571447991,-500.0,0.00016986,2]
[351430314,1738571448001,-500.0,0.00016986,2]
[351430315,1738571448011,-694.54,0.00016986,2]
[351430316,1738571448021,-795.11,0.00016986,2]
[351430317,1738571448031,-500.0,0.00016986,2]
[351430318,1738571448040,-2210.56,0.00016986,2]
[351430319,1738571448050,-1017.45,0.00016986,2]
[351430320,1738571448060,-500.0,0.00016986,2]
[351430321,1738571448071,-500.0,0.00016986,2]
[351430322,1738571448081,-500.0,0.00016986,2]
[351430323,1738571448092,-315.50838081,0.00016986,2]
[351430324,1738571448107,-1056.1,0.00016986,2]
[351430325,1738571448118,-500.0,0.00016986,2]
[351430326,1738571448128,-15200.72,0.00016986,2]
[351430327,1738571448140,-573.68,0.00016986,2]
[351430328,1738571448150,-3438.92,0.00016986,2]
[351430329,1738571448160,-726.21,0.00016986,2]
[351430330,1738571448172,-500.0,0.00016986,2]
[351430331,1738571448184,-1153.61,0.00016986,2]
[351430332,1738571448194,-500.0,0.00016986,2]
[351430333,1738571448204,-187.44601946,0.00016999,2]
[351430334,1738571448214,-1000.0,0.00017,17]
[351430335,1738571448225,-23830.28511085,0.00017,2]
[351430336,1738571448277,-85.33373843,0.00017,2]
[351430337,1738571459737,-322.11,0.000187,31]
[351430338,1738571459775,-322.11,0.000187,31]
[351430339,1738571459815,-322.11,0.000187,31]
[351430340,1738571459848,-322.11,0.000187,31]
[351430341,1738571459881,-322.11,0.000187,31]
[351430342,1738571459916,-322.11,0.000187,31]
[351430343,1738571459951,-322.11,0.000187,31]
[351430344,1738571459986,-322.11,0.000187,31]
[351430345,1738571460026,-322.11,0.000187,31]
[351430346,1738571460065,-322.11,0.000187,31]
[351430347,1738571460102,-322.11,0.000187,31]
[351430348,1738571460150,-322.11,0.000187,31]
[351430349,1738571460199,-322.11,0.000187,31]
[351430350,1738571460239,-322.11,0.000187,31]
[351430351,1738571460277,-322.11,0.000187,31]
[351430352,1738571460314,-322.11,0.000187,31]
[351430353,1738571460361,-3000.0,0.00019178,30]
[351430354,1738571460400,-3688.10644463,0.000195,30]
[351430355,1738571460440,-1204.0,0.00019589,30]
[351430356,1738571460476,-2000.0,0.00019616,30]
[351430357,1738571460510,-2000.0,0.00019644,30]
[351430358,1738571460544,-2000.0,0.00019671,30]
[351430359,1738571460578,-2000.0,0.00019699,30]
[351430360,1738571460610,-2000.0,0.00019726,30]
[351430361,1738571460645,-500.0,0.00019953,60]
[351430362,1738571460677,-500.0,0.00019953,60]
[351430363,1738571460712,-462.54921539,0.00019953,60]
[351430364,1738571460742,-150.22145955,0.00019953,60]
[351430365,1738571460778,-160.0,0.0002,30]
[351430366,1738571460808,-160.0,0.0002,30]
[351430367,1738571460838,-2481.68757485,0.0002,30]
[351430368,1738571460869,-1784.14815764,0.0002,30]
[351430369,1738571460900,-790.42828555,0.0002,30]
[351430370,1738571460932,-3966.13817466,0.0002,30]
[351430371,1738571460968,-352.31642,0.0002,30]
[351430372,1738571461000,-150.41,0.000204,60]
[351430373,1738571461033,-344.0,0.0002045,30]
[351430374,1738571461062,-2700.78232883,0.00020503,120]
[351430375,1738571461095,-500.0,0.00020603,60]
[351430376,1738571461132,-160.0,0.00020684,120]
[351430377,1738571461166,-322.11,0.000207,31]
[351430378,1738571461206,-322.11,0.000207,31]
[351430379,1738571461242,-322.11,0.000207,31]
[351430380,1738571461277,-322.11,0.000207,31]
[351430381,1738571461428,-322.11,0.000207,31]
[351430382,1738571461470,-322.11,0.000207,31]
[351430383,1738571461507,-322.11,0.000207,31]
[351430384,1738571461542,-322.11,0.000207,31]
[351430385,1738571461575,-322.11,0.000207,31]
[351430386,1738571461620,-322.11,0.000207,31]
[351430387,1738571461657,-322.11,0.000207,31]
[351430388,1738571461697,-322.11,0.000207,31]
[351430389,1738571461733,-322.11,0.000207,31]
[351430390,1738571461769,-322.11,0.000207,31]
[351430391,1738571461805,-322.11,0.000207,31]
[351430392,1738571461842,-322.11,0.000207,31]
[351430393,1738571461878,-322.11,0.000207,31]
[351430394,1738571461913,-322.11,0.000207,31]
[351430395,1738571461950,-322.11,0.000207,31]
[351430396,1738571461987,-322.11,0.000207,31]
[351430397,1738571462021,-322.11,0.000207,31]
[351430398,1738571462055,-322.11,0.000207,31]
[351430399,1738571462088,-322.11,0.000207,31]
[351430400,1738571462124,-322.11,0.000207,31]
[351430401,1738571462155,-160.0,0.00020844,120]
[351430402,1738571462192,-160.0,0.00021,30]
[351430403,1738571462223,-300.0,0.00021,120]
[351430404,1738571462254,-9330.96076707,0.00021,120]
[351430405,1738571462285,-2477.19113882,0.00021,30]
[351430406,1738571462316,-266353.52652399,0.00021,30]
[351430407,1738571462349,-150.0,0.0002102,62]
[351430408,1738571462379,-160.0,0.00021028,120]
[351430409,1738571462411,-2290.50333469,0.000212,30]
[351430410,1738571462444,-160.0,0.00021221,120]
[351430411,1738571462477,-160.0,0.00021427,120]
[351430412,1738571462508,-160.0,0.0002158,120]
[351430413,1738571462539,-3762.2680625,0.00021698,30]
[351430414,1738571462570,-8838.58937088,0.000217,30]
[351430415,1738571462612,-1333.0,0.00021781,120]
[351430416,1738571462644,-160.0,0.00021785,120]
[351430417,1738571462674,-390.69425023,0.000218,120]
[351430418,1738571462714,-160.0,0.00021859,120]
[351430419,1738571462746,-160.0,0.00021862,120]
[351430420,1738571462780,-10155.96346012,0.00022,60]
[351430421,1738571462812,-200.0,0.00022,120]
[351430422,1738571462844,-150000.0,0.00022,30]
[351430423,1738571462875,-3000.0360545,0.00022,60]
[351430424,1738571462908,-259679.08863863,0.00022,30]
[351430425,1738571462943,-200.0,0.00022,120]
[351430426,1738571462975,-2343.73165148,0.00022,120]
[351430427,1738571463008,-98514.98519166,0.00022,120]
[351430428,1738571463044,-300.0,0.00022,120]
[351430429,1738571463236,3149.92897006,0.00022,30]
[351430430,1738571467787,261.7,0.00022,30]
[351430431,1738571469608,150.0,0.0002,30]
[351430432,1738571474331,193.33,0.000207,31]
[351430433,1738571474384,193.33,0.000207,31]
[351430434,1738571474438,193.33,0.000207,31]
[351430435,1738571474504,193.33,0.000207,31]
[351430436,1738571474565,193.33,0.000207,31]
[351430437,1738571474622,193.33,0.000207,31]
[351430438,1738571474683,193.33,0.000207,31]
[351430439,1738571474748,193.33,0.000207,31]
[351430440,1738571474808,193.33,0.000207,31]
[351430441,1738571474882,193.33,0.000207,31]
[351430442,1738571474939,193.33,0.000207,31]
[351430443,1738571474992,193.33,0.000207,31]
[351430444,1738571475052,193.33,0.000207,31]
[351430445,1738571475114,193.33,0.000207,31]
[351430446,1738571475180,193.33,0.000207,31]
[351430447,1738571475234,193.33,0.000207,31]
[351430448,1738571475300,193.33,0.000207,31]
[351430449,1738571475353,193.33,0.000207,31]
[351430450,1738571475410,193.33,0.000207,31]
[351430451,1738571475478,193.33,0.000207,31]
[351430452,1738571475532,193.33,0.000207,31]
[351430453,1738571475755,193.33,0.000207,31]
[351430454,1738571475797,193.33,0.000207,31]
[351430455,1738571475837,193.33,0.000207,31]
[351430456,1738571475876,193.33,0.000187,31]
[351430457,1738571475915,193.33,0.000187,31]
[351430458,1738571476020,193.33,0.000187,31]
[351430459,1738571476060,193.33,0.000187,31]
[351430460,1738571476099,193.33,0.000187,31]
[351430461,1738571476140,193.33,0.000187,31]
[351430462,1738571476179,193.33,0.000187,31]
[351430463,1738571476221,193.33,0.000187,31]
[351430464,1738571476259,193.33,0.000187,31]
[351430465,1738571476304,193.33,0.000187,31]
[351430466,1738571476343,193.33,0.000187,31]
[351430467,1738571476403,193.33,0.000187,31]
[351430468,1738571476459,193.33,0.000187,31]
[351430469,1738571476520,193.33,0.000187,31]
[351430470,1738571476576,193.33,0.000187,31]
[351430471,1738571476638,193.33,0.000187,31]
[351430472,1738571504727,1333.0,0.00021781,120]
[351430476,1738571719022,4582.54224446,0.00016,10]
[351430479,1738571897693,400.0,0.00013973,2]
[351430481,1738572084085,152.68,0.000207,31]
[351430482,1738572084122,152.68,0.000207,31]
[351430483,1738572084164,152.68,0.000207,31]
[351430484,1738572084212,152.68,0.000207,31]
[351430485,1738572084273,152.68,0.000207,31]
[351430486,1738572084343,152.68,0.000207,31]
[351430487,1738572084398,152.68,0.000207,31]
[351430488,1738572084459,152.68,0.000207,31]
[351430489,1738572084521,152.68,0.000207,31]
[351430490,1738572084737,152.68,0.000207,31]
[351430491,1738572084781,152.68,0.000207,31]
[351430492,1738572084820,152.68,0.000207,31]
[351430493,1738572084866,152.68,0.000207,31]
[351430494,1738572084909,152.68,0.000207,31]
[351430495,1738572084955,152.68,0.000207,31]
[351430496,1738572084999,152.68,0.000207,31]
[351430497,1738572085046,152.68,0.000207,31]
[351430498,1738572085086,152.68,0.000207,31]
[351430499,1738572085131,152.68,0.000187,31]
[351430500,1738572085204,152.68,0.000187,31]
[351430501,1738572085263,152.68,0.000187,31]
[351430502,1738572085317,152.68,0.000187,31]
[351430503,1738572085377,152.68,0.000187,31]
[351430504,1738572085444,152.68,0.000187,31]
[351430505,1738572085491,152.68,0.000187,31]
[351430506,1738572085554,152.68,0.000187,31]
[351430507,1738572085613,152.68,0.000187,31]
[351430508,1738572085694,152.68,0.000187,31]
[351430509,1738572085755,152.68,0.000187,31]
[351430510,1738572085810,152.68,0.000187,31]
[351430512,1738572092592,152.68,0.000187,31]
[351430514,1738572119924,1000.0,0.00016,16]
[351430517,1738572284859,1333.0,0.00021781,120]
[351430521,1738572340146,-151.0,0.00015211,2]
[351430522,1738572340168,-659.30330007,0.00015365,2]
[351430523,1738572547130,-5000.0,0.00015211,2]
[351430524,1738572547151,-239.183913,0.00015521,2]
[351430525,1738572547172,-2326.83862552,0.00015589,2]
[351430526,1738572547200,-10.03271058,0.00015589,2]
[351430554,1738572632429,-5000.0,0.0001611,2]
[351430555,1738572632439,-1951.69034998,0.00016273,2]
[351430556,1738572632449,-300.0,0.00016437,2]
[351430557,1738572632458,-416.09011951,0.00016438,2]
[351430558,1738572632468,-449.2247267,0.00016438,2]
[351430559,1738572632477,-500.0,0.00016438,2]
[351430560,1738572632487,-411.6901701,0.00016438,2]
[351430561,1738572632500,-349.69815765,0.00016438,2]
[351430562,1738572632509,-511.00099134,0.00016438,2]
[351430563,1738572632519,-501.68634764,0.00016438,2]
[351430564,1738572632530,-500.0,0.00016438,2]
[351430565,1738572632540,-500.0,0.00016438,2]
[351430566,1738572632550,-501.50865133,0.00016438,2]
[351430567,1738572632560,-555.25422461,0.00016438,2]
[351430568,1738572632570,-500.0,0.00016438,2]
[351430569,1738572632580,-500.0,0.00016438,2]
[351430570,1738572632590,-500.0,0.00016438,2]
[351430571,1738572632599,-500.0,0.00016438,2]
[351430572,1738572632609,-500.0,0.00016438,2]
[351430573,1738572632619,-500.0,0.00016438,2]
[351430574,1738572632628,-500.0,0.00016438,2]
[351430575,1738572632637,-504.50632288,0.00016438,2]
[351430576,1738572632646,-500.0,0.00016438,2]
[351430577,1738572632655,-500.0,0.00016438,2]
[351430578,1738572632664,-500.0,0.00016438,2]
[351430579,1738572632674,-500.0,0.00016438,2]
[351430580,1738572632683,-500.0,0.00016438,2]
[351430581,1738572632693,-500.0,0.00016438,2]
[351430582,1738572632702,-500.0,0.00016438,2]
[351430583,1738572632711,-500.0,0.00016438,2]
[351430584,1738572632721,-503.76388527,0.00016438,2]
[351430585,1738572632730,-154.80103283,0.00016438,2]
[351430586,1738572632740,-500.0,0.00016438,2]
[351430587,1738572632749,-323.46013718,0.00016438,2]
[351430588,1738572632758,-500.0,0.00016438,2]
[351430589,1738572632768,-500.0,0.00016438,2]
[351430590,1738572632777,-500.0,0.00016438,2]
[351430591,1738572632786,-500.0,0.00016438,2]
[351430592,1738572632796,-500.0,0.00016438,2]
[351430593,1738572632806,-500.0,0.00016438,2]
[351430594,1738572632816,-501.99572955,0.00016438,2]
[351430595,1738572632825,-529.18043124,0.00016438,2]
[351430596,1738572632835,-500.0,0.00016438,2]
[351430597,1738572632845,-403.094666,0.00016438,2]
[351430598,1738572632854,-500.0,0.00016438,2]
[351430599,1738572632863,-500.0,0.00016438,2]
[351430600,1738572632872,-545.73058514,0.00016438,2]
[351430601,1738572632881,-500.0,0.00016438,2]
[351430602,1738572632890,-501.10802055,0.00016438,2]
[351430603,1738572632900,-500.0,0.00016438,2]
[351430604,1738572632909,-500.0,0.00016438,2]
[351430605,1738572632920,-500.0,0.00016438,2]
[351430606,1738572632929,-500.0,0.00016438,2]
[351430607,1738572632939,-631.56,0.00016438,2]
[351430608,1738572632949,-500.0,0.00016438,2]
[351430609,1738572632959,-151.484205,0.00016438,2]
[351430610,1738572632969,-500.0,0.00016438,2]
[351430611,1738572632979,-500.0,0.00016438,2]
[351430612,1738572632988,-501.22156388,0.00016438,2]
[351430613,1738572632998,-500.0,0.00016438,2]
[351430614,1738572633008,-501.4628618,0.00016438,2]
[351430615,1738572633019,-500.0,0.00016438,2]
[351430616,1738572633030,-500.0,0.00016438,2]
[351430617,1738572633040,-501.17695868,0.00016438,2]
[351430618,1738572633052,-500.0,0.00016438,2]
[351430619,1738572633067,-500.0,0.00016438,2]
[351430620,1738572633077,-500.0,0.00016438,2]
[351430621,1738572633088,-500.0,0.00016438,2]
[351430622,1738572633099,-500.0,0.00016438,2]
[351430623,1738572633109,-500.0,0.00016438,2]
[351430624,1738572633120,-501.37473678,0.00016438,2]
[351430625,1738572633131,-500.0,0.00016438,2]
[351430626,1738572633141,-500.0,0.00016438,2]
[351430627,1738572633151,-500.0,0.00016438,2]
[351430628,1738572633161,-500.0,0.00016438,2]
[351430629,1738572633171,-345.40859823,0.00016438,2]
[351430630,1738572633181,-500.0,0.00016438,2]
[351430631,1738572633192,-500.0,0.00016438,2]
[351430632,1738572633203,-500.0,0.00016438,2]
[351430633,1738572633213,-503.86930006,0.00016438,2]
[351430634,1738572633224,-500.0,0.00016438,2]
[351430635,1738572633234,-500.0,0.00016438,2]
[351430636,1738572633245,-500.0,0.00016438,2]
[351430637,1738572633256,-508.02384106,0.00016438,2]
[351430638,1738572633266,-522.78616912,0.00016438,2]
[351430639,1738572633278,-500.0,0.00016438,2]
[351430640,1738572633289,-503.62503703,0.00016438,2]
[351430641,1738572633299,-534.42,0.00016438,2]
[351430642,1738572633313,-500.0,0.00016438,2]
[351430643,1738572633323,-500.0,0.00016438,2]
[351430644,1738572633334,-500.0,0.00016438,2]
[351430645,1738572633345,-518.40843457,0.00016438,2]
[351430646,1738572633355,-500.0,0.00016438,2]
[351430647,1738572633365,-500.0,0.00016438,2]
[351430648,1738572633375,-500.0,0.00016438,2]
[351430649,1738572633386,-500.0,0.00016438,2]
[351430650,1738572633396,-500.0,0.00016438,2]
[351430651,1738572633407,-500.0,0.00016438,2]
[351430652,1738572633418,-500.0,0.00016438,2]
[351430653,1738572633428,-500.0,0.00016438,2]
[351430654,1738572633439,-500.0,0.00016438,2]
[351430655,1738572633450,-500.0,0.00016438,2]
[351430656,1738572633460,-500.0,0.00016438,2]
[351430657,1738572633469,-500.0,0.00016438,2]
[351430658,1738572633479,-500.0,0.00016438,2]
[351430659,1738572633493,-279.22681415,0.00016438,2]
[351430660,1738572633504,-288.44,0.00016438,2]
[351430661,1738572633516,-465.31440897,0.00016438,2]
[351430662,1738572633527,-677.11934906,0.00016438,2]
[351430663,1738572633540,-513.04778202,0.00016438,2]
[351430664,1738572633551,-500.0,0.00016438,2]
[351430665,1738572633569,-500.0,0.00016438,2]
[351430666,1738572633581,-500.0,0.00016438,2]
[351430667,1738572633593,-500.0,0.00016438,2]
[351430668,1738572633604,-500.0,0.00016438,2]
[351430669,1738572633616,-500.0,0.00016438,2]
[351430670,1738572633628,-500.0,0.00016438,2]
[351430671,1738572633640,-1100.36,0.00016438,2]
[351430672,1738572633650,-500.0,0.00016438,2]
[351430673,1738572633662,-228.17552492,0.00016438,2]
[351430674,1738572633673,-500.0,0.00016438,2]
[351430675,1738572633685,-510.80358895,0.00016438,2]
[351430676,1738572633696,-500.0,0.00016438,2]
[351430677,1738572633709,-500.0,0.00016438,2]
[351430678,1738572633721,-500.0,0.00016438,2]
[351430679,1738572633732,-500.0,0.00016438,2]
[351430680,1738572633743,-510.529121,0.00016438,2]
[351430681,1738572633754,-500.0167824,0.00016438,2]
[351430682,1738572633765,-500.0,0.00016438,2]
[351430683,1738572633776,-512.14704955,0.00016438,2]
[351430684,1738572633787,-500.0,0.00016438,2]
[351430685,1738572633797,-500.0,0.00016438,2]
[351430686,1738572633807,-500.0,0.00016438,2]
[351430687,1738572633828,-621.91,0.00016438,2]
[351430688,1738572633839,-500.0,0.00016438,2]
[351430689,1738572633850,-500.0,0.00016438,2]
[351430690,1738572633861,-500.0,0.00016438,2]
[351430691,1738572633871,-3610.33,0.00016438,2]
[351430692,1738572633882,-500.0,0.00016438,2]
[351430693,1738572633893,-1440.0,0.00016438,2]
[351430694,1738572633903,-500.0,0.00016438,2]
[351430695,1738572633913,-500.0,0.00016438,2]
[351430696,1738572633926,-500.0,0.00016438,2]
[351430697,1738572633937,-638.94149389,0.00016438,2]
[351430698,1738572633947,-500.0,0.00016438,2]
[351430699,1738572633957,-500.0,0.00016438,2]
[351430700,1738572633967,-500.0,0.00016438,2]
[351430701,1738572633978,-500.0,0.00016438,2]
[351430702,1738572633988,-500.0,0.00016438,2]
[351430703,1738572633999,-500.0,0.00016438,2]
[351430704,1738572634009,-500.0,0.00016438,2]
[351430705,1738572634019,-500.0,0.00016438,2]
[351430706,1738572634030,-500.0,0.00016438,2]
[351430707,1738572634041,-500.0,0.00016438,2]
[351430708,1738572634051,-500.0,0.00016438,2]
[351430709,1738572634066,-244.30821813,0.00016438,2]
[351430710,1738572634076,-500.0,0.00016438,2]
[351430711,1738572634086,-591.41365597,0.00016438,2]
[351430712,1738572634096,-500.0,0.00016438,2]
[351430713,1738572634106,-500.0,0.00016438,2]
[351430714,1738572634116,-500.0,0.00016438,2]
[351430715,1738572634126,-500.0,0.00016438,2]
[351430716,1738572634135,-500.0,0.00016438,2]
[351430717,1738572634145,-500.0,0.00016438,2]
[351430718,1738572634155,-500.0,0.00016438,2]
[351430719,1738572634319,-500.0,0.00016438,2]
[351430720,1738572634330,-500.0,0.00016438,2]
[351430721,1738572634340,-500.0,0.00016438,2]
[351430722,1738572634350,-672.37,0.00016438,2]
[351430723,1738572634360,-533.98187845,0.00016438,2]
[351430724,1738572634371,-901.73,0.00016438,2]
[351430725,1738572634381,-1184.54,0.00016438,2]
[351430726,1738572634391,-500.0,0.00016438,2]
[351430727,1738572634401,-500.0,0.00016438,2]
[351430728,1738572634411,-500.0,0.00016438,2]
[351430729,1738572634422,-500.0,0.00016438,2]
[351430730,1738572634432,-500.0,0.00016438,2]
[351430731,1738572634442,-2324.5,0.00016438,2]
[351430732,1738572634452,-500.0,0.00016438,2]
[351430733,1738572634461,-500.0,0.00016438,2]
[351430734,1738572634471,-500.0,0.00016438,2]
[351430735,1738572634482,-500.0,0.00016438,2]
[351430736,1738572634493,-500.0,0.00016438,2]
[351430737,1738572634508,-500.0,0.00016438,2]
[351430738,1738572634519,-501.45175561,0.00016438,2]
[351430739,1738572634530,-505.36417269,0.00016438,2]
[351430740,1738572634541,-500.0,0.00016438,2]
[351430741,1738572634552,-500.0,0.00016438,2]
[351430742,1738572634566,-500.0,0.00016438,2]
[351430743,1738572634578,-502.53362922,0.00016438,2]
[351430744,1738572634588,-3633.92,0.00016438,2]
[351430745,1738572634598,-603.56,0.00016438,2]
[351430746,1738572634608,-167.70049091,0.00016438,2]
[351430747,1738572634618,-500.0,0.00016438,2]
[351430748,1738572634627,-15310.12,0.00016438,2]
[351430749,1738572634637,-500.0,0.00016438,2]
[351430750,1738572634647,-875.56,0.00016438,2]
[351430751,1738572634657,-500.0,0.00016438,2]
[351430752,1738572634667,-500.0,0.00016438,2]
[351430753,1738572634678,-488.19567111,0.00016438,2]
[351430754,1738572634687,-1245.28,0.00016438,2]
[351430755,1738572634697,-500.0,0.00016438,2]
[351430756,1738572634707,-1287.37,0.00016438,2]
[351430757,1738572634717,-500.0,0.00016438,2]
[351430758,1738572634726,-500.0,0.00016438,2]
[351430759,1738572634736,-500.0,0.00016438,2]
[351430760,1738572634747,-500.0,0.00016438,2]
[351430761,1738572634756,-500.0,0.00016438,2]
[351430762,1738572634766,-500.0,0.00016438,2]
[351430763,1738572634776,-704.90993861,0.00016495,2]
[351430764,1738572634785,-500.0,0.00016574,2]
[351430765,1738572634794,-500.0,0.00016574,2]
[351430766,1738572634803,-500.0,0.00016574,2]
[351430767,1738572634815,-500.0,0.00016575,2]
[351430768,1738572634825,-500.0,0.00016575,2]
[351430769,1738572634835,-552.83293548,0.00016575,2]
[351430770,1738572634844,-500.0,0.00016575,2]
[351430771,1738572634853,-540.39177439,0.00016575,2]
[351430772,1738572634863,-415.07546375,0.00016575,2]
[351430773,1738572634872,-500.0,0.00016575,2]
[351430774,1738572634882,-500.0,0.00016575,2]
[351430775,1738572634891,-500.0,0.00016575,2]
[351430776,1738572634900,-500.0,0.00016575,2]
[351430777,1738572634908,-500.0,0.00016575,2]
[351430778,1738572634917,-500.0,0.00016575,2]
[351430779,1738572634927,-500.0,0.00016575,2]
[351430780,1738572634936,-500.0,0.00016575,2]
[351430781,1738572634946,-500.0,0.00016575,2]
[351430782,1738572634955,-500.0,0.00016575,2]
[351430783,1738572634965,-500.0,0.00016575,2]
[351430784,1738572634975,-500.0,0.00016575,2]
[351430785,1738572634984,-500.0,0.00016575,2]
[351430786,1738572634993,-500.0,0.00016575,2]
[351430787,1738572635003,-500.0,0.00016575,2]
[351430788,1738572635012,-534.42,0.00016575,2]
[351430789,1738572635022,-500.0,0.00016575,2]
[351430790,1738572635031,-500.0,0.00016575,2]
[351430791,1738572635041,-500.0,0.00016575,2]
[351430792,1738572635051,-500.0,0.00016575,2]
[351430793,1738572635063,-500.0,0.00016575,2]
[351430794,1738572635072,-500.0,0.00016575,2]
[351430795,1738572635081,-500.0,0.00016575,2]
[351430796,1738572635091,-500.0,0.00016575,2]
[351430797,1738572635101,-500.0,0.00016575,2]
[351430798,1738572635110,-500.0,0.00016575,2]
[351430799,1738572635119,-500.0,0.00016575,2]
[351430800,1738572635128,-1100.36,0.00016575,2]
[351430801,1738572635137,-500.0,0.00016575,2]
[351430802,1738572635147,-500.0,0.00016575,2]
[351430803,1738572635156,-500.0,0.00016575,2]
[351430804,1738572635166,-500.0,0.00016575,2]
[351430805,1738572635175,-500.0,0.00016575,2]
[351430806,1738572635184,-500.0,0.00016575,2]
[351430807,1738572635194,-500.0,0.00016575,2]
[351430808,1738572635203,-621.91,0.00016575,2]
[351430809,1738572635212,-500.0,0.00016575,2]
[351430810,1738572635222,-3610.33,0.00016575,2]
[351430811,1738572635231,-500.0,0.00016575,2]
[351430812,1738572635240,-1440.0,0.00016575,2]
[351430813,1738572635250,-500.0,0.00016575,2]
[351430814,1738572635259,-190.91065091,0.00016575,2]
[351430815,1738572635268,-500.0,0.00016575,2]
[351430816,1738572635278,-526.90670842,0.00016575,2]
[351430817,1738572635287,-500.0,0.00016575,2]
[351430818,1738572635295,-500.0,0.00016575,2]
[351430819,1738572635305,-500.0,0.00016575,2]
[351430820,1738572635318,-500.0,0.00016575,2]